Cogmind - Beta 12 @@@ ROGUE MODE // 2023.10.25 @ 23:07:19 Player: wchar_t Result: Destroyed by H-88 Terminator with Heavy Machine Gun Performance ------------- Evolutions (8) 4000 Regions Visited (16) 3200 Robots Destroyed (31) 155 Value Destroyed (1192) 1192 Prototype IDs (21) 420 Alien Tech Used (12) 2400 Bonus (868) 868 TOTAL SCORE: 12235 Bonus ------- Pacifist 470 High Alert Combat Kills 98 Met Zhirov 300 Cogmind --------- Core Integrity 0/1450 Matter 173/425 Energy 100/100 System Corruption 13% Temperature Cool (0) Movement Core (50) Location -2/Section 7 Parts ------- > --- POWER (2) -------- (None) > --- PROPULSION (9) --- (None) > --- UTILITY (10) ----- Machine Analyzer Advanced Visual Processing Unit Advanced Signal Interpreter Improved Melee Analysis Suite Advanced System Shield Core Physics Calibrator > --- WEAPON (2) ------- (None) > --- INVENTORY (7) ---- Experimental Power Amplifier Subatomic Replicator Core Cannon Power Sword Peak State ------------ > --- POWER ------------ Light Antimatter Reactor > --- PROPULSION ------- Combat Linear Gravjet Combat Linear Gravjet Cooled Nuclear Pulse Thruster Cooled Nuclear Pulse Thruster Impulse Thruster Field Propulsion Array Q-thruster Q-thruster > --- UTILITY ---------- Experimental Power Amplifier Advanced Heat Sink Medium Storage Unit Structural Scanner Machine Analyzer Advanced Visual Processing Unit Advanced Signal Interpreter Propulsion Shielding Advanced Hacking Suite Advanced System Shield > --- WEAPON ----------- Sigix Broadsword > --- INVENTORY -------- Q-thruster Advanced Reaction Control System Advanced Phase Shifter Phase Redirector Advanced System Shield Transdimensional Reconstructor Subatomic Replicator Core Cannon Power Sword [Rating: 154] Favorites ----------- Power Light Antimatter Reactor Reactor Light Antimatter Reactor Propulsion Cooled Nuclear Pulse Thruster Hover Unit Combat Linear Gravjet Flight Unit Cooled Nuclear Pulse Thruster Utility Machine Analyzer Device Experimental Power Amplifier Storage Medium Storage Unit Processor Machine Analyzer Hackware Advanced Hacking Suite Protection Propulsion Shielding Artifact Core Physics Calibrator Weapon Sigix Broadsword Energy Cannon Disintegrator Launcher Grenade Launcher Impact Weapon Thunder Hammer Slashing Weapon Sigix Broadsword Piercing Weapon Heavy Pick Build | -11 -10 -9 -8 -7 -6 -5 -4 -4 -4 -4 -3 -3 -3 -2 -2 -2 ------- Run | Jun Mat Mat Mat Fac Fac Fac Fac Upp Upp Zhi Pro Res Tes Res Qua Sec Slots Evolved 16 | . . 2 2 2 2 2 2 . . . . 2 . 2 . . Power 1 | . . . . . . . . . . . . . . 1 . . Propulsion 7 | . . 1 1 1 1 1 1 . . . . 1 . . . . Utility 8 | . . 1 1 1 1 1 1 . . . . 1 . 1 . . Weapon . | . . . . . . . . . . . . . . . . . Parts Attached 90 | . 1 2 6 6 9 7 4 . 2 5 1 2 5 15 12 13 Power 3 | . . . . . . . . . . . . . 1 . 2 . Engine . | . . . . . . . . . . . . . . . . . Core . | . . . . . . . . . . . . . . . . . Reactor 3 | . . . . . . . . . . . . . 1 . 2 . Propulsion 29 | . . 1 3 1 5 1 2 . . 3 . . . 6 4 3 Treads . | . . . . . . . . . . . . . . . . . Leg . | . . . . . . . . . . . . . . . . . Wheel . | . . . . . . . . . . . . . . . . . Hover 14 | . . . . . 5 1 2 . . . . . . 4 1 1 Flight 15 | . . 1 3 1 . . . . . 3 . . . 2 3 2 Utility 35 | . 1 . 1 4 2 2 1 . 2 1 1 2 2 7 5 4 Device 16 | . . . . 2 . 1 . . 1 1 1 . 2 3 3 2 Storage 1 | . . . . . . . . . . . . . . . 1 . Processor 8 | . 1 . 1 1 1 . 1 . . . . . . 2 . 1 Hackware 4 | . . . . 1 . . . . . . . 2 . 1 . . Protection 4 | . . . . . 1 1 . . 1 . . . . 1 . . Artifact 2 | . . . . . . . . . . . . . . . 1 1 Weapon 23 | . . 1 2 1 2 4 1 . . 1 . . 2 2 1 6 Energy Gun . | . . . . . . . . . . . . . . . . . Energy Cannon 1 | . . . . . . . . . . . . . 1 . . . Ballistic Gun . | . . . . . . . . . . . . . . . . . Ballistic Cannon . | . . . . . . . . . . . . . . . . . Launcher 4 | . . 1 1 . 1 1 . . . . . . . . . . Special Weapon . | . . . . . . . . . . . . . . . . . Impact Weapon 2 | . . . . . . 2 . . . . . . . . . . Slashing Weapon 11 | . . . 1 1 1 . . . . . . . . 1 1 6 Piercing Weapon 5 | . . . . . . 1 1 . . 1 . . 1 1 . . Special Melee Weapon . | . . . . . . . . . . . . . . . . . Unidentified Prototypes 19 | . . . . . . 1 . . . 2 . . 2 2 2 10 Parts Lost 45 | . . . 1 6 1 7 4 . . . 1 . 1 5 3 16 Power 1 | . . . . . . . . . . . . . . . . 1 Propulsion 27 | . . . 1 3 1 6 2 . . . . . . 3 1 10 Utility 15 | . . . . 3 . 1 2 . . . 1 . 1 1 2 4 Weapon 2 | . . . . . . . . . . . . . . 1 . 1 Highest Loss Streak 8 | . . . 1 6 1 3 4 . . . 1 . 1 3 3 8 To Critical Strikes . | . . . . . . . . . . . . . . . . . Average Slot Usage (%) 52 | . 9 24 26 51 51 53 35 21 23 38 50 55 56 53 83 63 Hover 6 | . . . . . 20 16 3 . . . . . . 2 12 6 Flight 11 | . . 8 7 17 6 3 . . . 7 15 14 14 12 21 16 Device 5 | . . . . 5 . 4 5 . . 2 7 9 9 5 9 5 Storage 1 | . . . . . . . . . . . . . . . 4 3 Processor 16 | . 9 11 10 15 17 17 19 21 21 21 21 19 19 18 13 15 Hackware 4 | . . . . 4 . . . . . . . 7 9 9 11 7 Protection 2 | . . . . . 3 8 4 . 2 5 . . . 1 4 . Slashing Weapon 2 | . . . 8 6 3 . . . . . . . . . 3 2 Naked Turns 28 | . 28 . . . . . . . . . . . . . . . Heaviest Build 40 | . . 3 3 5 4 7 6 . 3 8 8 7 12 11 40 38 Greatest Support 58 | 3 3 4 13 13 27 29 20 3 3 18 18 18 18 34 58 52 Greatest Overweight (x) 1 | . . . . . . 1 1 . . . . . . . 1 . Average Overweight (x) . | . . . . . . . . . . . . . . . . . Largest Inventory Capacity 10 | 5 5 5 5 5 5 5 5 5 5 5 5 5 5 5 10 10 Average Capacity 6 | 5 5 5 5 5 5 5 5 5 5 5 5 5 5 5 9 8 Most Carried 10 | . 2 2 2 3 3 4 4 4 5 5 5 5 5 5 10 10 Average Carried 5 | . 1 1 1 2 2 3 3 4 4 4 5 4 4 4 8 8 Final Capacity 10 | 5 5 5 5 5 5 5 5 5 5 5 5 5 5 5 10 7 Final Carried 10 | . 2 2 2 2 2 4 4 4 5 5 5 4 5 5 10 5 Class Distribution -------------------- 47% | Mutant 37% | Hacker-Sprinter 6% | Sprinter 3% | Hacker-Scout Dominant Class ---------------- Mutant | -10/Materials Mutant | -9/Materials Mutant | -8/Materials Sprinter | -7/Factory Mutant | -6/Factory Mutant | -5/Factory Mutant | -4/Factory Mutant | -4/Upper Caves Mutant | -4/Upper Caves Mutant | -4/Zhirov Scout | -3/Proximity Caves Hacker-Scout | -3/Research Hacker-Scout | -3/Testing Hacker-Sprinter | -2/Research Hacker-Sprinter | -2/Quarantine Hacker-Sprinter | -2/Section 7 Resources | -11 -10 -9 -8 -7 -6 -5 -4 -4 -4 -4 -3 -3 -3 -2 -2 -2 ----------- Run | Jun Mat Mat Mat Fac Fac Fac Fac Upp Upp Zhi Pro Res Tes Res Qua Sec Matter Collected 1023 | 200 . . 125 40 . . . 123 29 . 113 . 31 40 287 35 Remotely . | . . . . . . . . . . . . . . . . . Salvage Created 1085 | . . . 246 174 25 19 . . . . . . 31 40 154 396 Parts 75 | . . . 17 9 1 1 . . . . . . 3 5 4 35 Haulers Intercepted . | . . . . . . . . . . . . . . . . . Recyclers Shooed . | . . . . . . . . . . . . . . . . . Parts Field Recycled . | . . . . . . . . . . . . . . . . . Retrieved Matter . | . . . . . . . . . . . . . . . . . Parts Self-Destructed . | . . . . . . . . . . . . . . . . . Prevented 4 | . . . . . . . . . 4 . . . . . . . Kills | -11 -10 -9 -8 -7 -6 -5 -4 -4 -4 -4 -3 -3 -3 -2 -2 -2 ------- Run | Jun Mat Mat Mat Fac Fac Fac Fac Upp Upp Zhi Pro Res Tes Res Qua Sec Combat Hostiles Destroyed 19 | . . . 7 2 3 1 . . . . . . . . 1 5 Melee 11 | . . . 3 2 . . . . . . . . . . 1 5 AOE 8 | . . . 4 . 3 1 . . . . . . . . . . Classes Destroyed 9 | . . . 4 1 . . . . . . . . . . 1 3 Worker 2 | . . . 1 1 . . . . . . . . . . . . Builder 2 | . . . . 1 . . . . . . . . . . 1 . Recycler 3 | . . . 2 1 . . . . . . . . . . . . Drone 1 | . . . . . . . . . . . . . . . . 1 Watcher 4 | . . . 1 . . . . . . . . . 1 1 1 . Swarmer 13 | . . . 7 2 3 1 . . . . . . . . . . Grunt 1 | . . . . . . . . . . . . . . . 1 . Researcher 2 | . . . . . . . . . . . . . . . . 2 Programmer 4 | . . . . . . . . . . . . . . . . 4 Best Kill Streak 6 | . . . 6 3 3 1 . . . . . . 1 1 1 2 Combat Bots Only 4 | . . . 4 2 3 1 . . . . . . . . 1 2 Max Kills in Single Turn 2 | . . . 2 1 1 1 . . . . . . 1 1 1 1 Gunslinging . | . . . . . . . . . . . . . . . . . Exploded 1 | . . . 1 . 1 1 . . . . . . . . . . Melee 1 | . . . 1 1 . . . . . . . . . . 1 1 Uniques/NPCs Destroyed . | . . . . . . . . . . . . . . . . . Combat | -11 -10 -9 -8 -7 -6 -5 -4 -4 -4 -4 -3 -3 -3 -2 -2 -2 -------- Run | Jun Mat Mat Mat Fac Fac Fac Fac Upp Upp Zhi Pro Res Tes Res Qua Sec Damage Taken 6242 | . 19 . 246 340 222 599 263 104 27 . 213 24 62 395 714 3014 Core 2313 | . 14 . 172 180 64 241 94 104 21 . 64 24 21 163 12 1139 Absorbed by Shields . | . . . . . . . . . . . . . . . . . Redirected to Shielding 261 | . . . . . 6 125 19 . 3 . 54 . . 9 45 . Regen/Repaired (Parts) 1109 | . . . . . . . . . . . . . . . 273 836 Core Remaining (%) 86 | 100 94 100 68 74 92 75 . . . . 75 . 96 . . . Volleys Fired 11 | . . 1 5 . 4 1 . . . . . . . . . . Largest 1 | . . 1 1 . 1 1 . . . . . . . . . . Hottest 30 | . . 30 30 . 30 30 . . . . . . . . . . Shots Fired 11 | . . 1 5 . 4 1 . . . . . . . . . . Gun . | . . . . . . . . . . . . . . . . . Cannon . | . . . . . . . . . . . . . . . . . Launcher 11 | . . 1 5 . 4 1 . . . . . . . . . . Special . | . . . . . . . . . . . . . . . . . Kinetic . | . . . . . . . . . . . . . . . . . Thermal . | . . . . . . . . . . . . . . . . . Explosive 11 | . . 1 5 . 4 1 . . . . . . . . . . Electromagnetic . | . . . . . . . . . . . . . . . . . Robot Hit Streak 4 | . . . 2 . 3 4 . . . . . . . . . . Robot Miss Streak 3 | . . . 3 . 1 . . . . . . . . . . . Penetration Max . | . . . . . . . . . . . . . . . . . Secondary Targets . | . . . . . . . . . . . . . . . . . Shots Hit Robots 43 | . . . 9 7 3 1 . . . . . . 2 3 6 12 Core Hits 33 | . 1 . 11 2 6 2 . . . . . . 2 1 3 5 Critical Kills . | . . . . . . . . . . . . . . . . . Critical Parts Destroyed . | . . . . . . . . . . . . . . . . . Critical Strikes 1 | . . . . . . . . . . . . . . . 1 . Sever 1 | . . . . . . . . . . . . . . . 1 . Melee Attacks 110 | . . . 22 12 7 1 4 . . . . . 6 8 22 28 Impact . | . . . . . . . . . . . . . . . . . Slashing 91 | . . . 22 12 7 . . . . . . . . . 22 28 Piercing 19 | . . . . . . 1 4 . . . . . 6 8 . . Sneak Attacks 11 | . . . 2 3 . . . . . . . . . 1 2 3 Combat Hostiles 1 | . . . . . . . . . . . . . . . . 1 Follow-up Attacks . | . . . . . . . . . . . . . . . . . Damage Inflicted 3501 | . 35 . 718 345 303 51 8 . 12 . . . 106 157 517 1249 Guns . | . . . . . . . . . . . . . . . . . Cannons . | . . . . . . . . . . . . . . . . . Explosions 728 | . . . 374 . 303 51 . . . . . . . . . . Melee 2718 | . . . 344 345 . . . . . . . . 106 157 517 1249 Ramming 55 | . 35 . . . . . 8 . 12 . . . . . . . Kinetic . | . . . . . . . . . . . . . . . . . Thermal . | . . . . . . . . . . . . . . . . . Explosive 728 | . . . 374 . 303 51 . . . . . . . . . . Electromagnetic . | . . . . . . . . . . . . . . . . . Impact . | . . . . . . . . . . . . . . . . . Slashing 2455 | . . . 344 345 . . . . . . . . . . 517 1249 Piercing 263 | . . . . . . . . . . . . . 106 157 . . Highest Corruption 13 | . 2 . . . . . 1 1 1 1 2 . . 1 1 13 Average Corruption 2 | . 2 . . . . . 1 1 1 1 1 . . 1 1 6 Corruption Purged . | . . . . . . . . . . . . . . . . . Corruption Blocked 20 | . . . . . . . . . . . . . . . . 20 Effects 21 | . . . . . . . . 1 1 . 1 . . . 3 15 Message Errors 5 | . . . . . . . . . . . . . . . . 5 Matter Fused 5 | . . . . . . . . 1 . . . . . . 1 3 Energy Discharges 3 | . . . . . . . . . 1 . . . . . . 2 Data Loss (minor) 3 | . . . . . . . . . . . . . . . 2 1 Alerts 1 | . . . . . . . . . . . 1 . . . . . Misdirections 4 | . . . . . . . . . . . . . . . . 4 Overload Shots . | . . . . . . . . . . . . . . . . . Overflow Damage 767 | . . . 104 97 26 . . . . . . . . 29 76 435 Projectiles . | . . . . . . . . . . . . . . . . . Explosions 41 | . . . 15 . 26 . . . . . . . . . . . Melee 726 | . . . 89 97 . . . . . . . . . 29 76 435 Knockbacks . | . . . . . . . . . . . . . . . . . Impact . | . . . . . . . . . . . . . . . . . Kinetic . | . . . . . . . . . . . . . . . . . Secondary . | . . . . . . . . . . . . . . . . . Self-Inflicted Damage 74 | . 14 . 35 . 15 . 4 . 6 . . . . . . . Shots 2 | . . . 1 . 1 . . . . . . . . . . . Rammed 13 | . 11 . . . . . 1 . 1 . . . . . . . Targets Rammed 13 | . 11 . . . . . 1 . 1 . . . . . . . Kicked . | . . . . . . . . . . . . . . . . . Crushed . | . . . . . . . . . . . . . . . . . Highest Temperature 163 | . . . . . . . . . . . . . . . 163 . Average Temperature 59 | . . . . . . . . . . . . . . . 59 . Received Heat Transfer 660 | . . . 27 60 30 162 36 . 12 . 42 . 21 27 9 234 Siege Activations . | . . . . . . . . . . . . . . . . . Robots Corrupted . | . . . . . . . . . . . . . . . . . Combat Hostiles . | . . . . . . . . . . . . . . . . . Parts Fried . | . . . . . . . . . . . . . . . . . Impact Corruptions . | . . . . . . . . . . . . . . . . . Robots Melted . | . . . . . . . . . . . . . . . . . Combat Hostiles . | . . . . . . . . . . . . . . . . . Parts Melted . | . . . . . . . . . . . . . . . . . Heat Transferred . | . . . . . . . . . . . . . . . . . Parts Sabotaged . | . . . . . . . . . . . . . . . . . Parts Stolen . | . . . . . . . . . . . . . . . . . Parts Stripped . | . . . . . . . . . . . . . . . . . Power Chain Reactions . | . . . . . . . . . . . . . . . . . Missiles Intercepted . | . . . . . . . . . . . . . . . . . Alert | -11 -10 -9 -8 -7 -6 -5 -4 -4 -4 -4 -3 -3 -3 -2 -2 -2 ------- Run | Jun Mat Mat Mat Fac Fac Fac Fac Upp Upp Zhi Pro Res Tes Res Qua Sec Peak Influence 811 | . . 35 396 303 274 402 161 . . . . 91 118 338 657 811 Initial 282 | . . . 14 179 148 141 113 . . . . 70 51 60 189 282 Average 317 | . . 10 209 225 244 248 132 . . . . 84 83 203 450 557 Maximum Alert Level 3 | . . . 1 1 1 2 . . . . . . . 1 2 3 Low Security (%) 33 | 100 100 100 43 23 11 44 100 . . . . 100 100 53 . . Level 1 34 | . . . 56 76 88 37 . . . . . . . 46 39 20 Level 2 28 | . . . . . . 17 . . . . . . . . 59 66 Level 3 2 | . . . . . . . . . . . . . . . . 12 Level 4 . | . . . . . . . . . . . . . . . . . Level 5 . | . . . . . . . . . . . . . . . . . High Security . | . . . . . . . . . . . . . . . . . Max Security . | . . . . . . . . . . . . . . . . . Squads Dispatched 14 | . . 1 1 . 1 1 2 . . . . . . 2 2 4 Investigation 3 | . . . . . . 1 1 . . . . . . 1 . . Extermination 2 | . . . . . . . . . . . . . . 1 . 1 Reinforcement 8 | . . 1 1 . 1 . 1 . . . . . . . 1 3 Assault 1 | . . . . . . . . . . . . . . . 1 . Garrison . | . . . . . . . . . . . . . . . . . Intercept . | . . . . . . . . . . . . . . . . . Searches Triggered 3 | . . . . . . 1 . . . . . . . . . 2 Construction Impeded . | . . . . . . . . . . . . . . . . . Haulers Reinforced . | . . . . . . . . . . . . . . . . . Active Scanning Responses . | . . . . . . . . . . . . . . . . . Cargo Convoy Interrupts . | . . . . . . . . . . . . . . . . . Stealth | -11 -10 -9 -8 -7 -6 -5 -4 -4 -4 -4 -3 -3 -3 -2 -2 -2 --------- Run | Jun Mat Mat Mat Fac Fac Fac Fac Upp Upp Zhi Pro Res Tes Res Qua Sec Distress Signals 11 | . . . 4 . . . . . . . . . . 2 1 4 Communications Jammed . | . . . . . . . . . . . . . . . . . Distress Signals . | . . . . . . . . . . . . . . . . . Times Spotted 205 | . 1 5 16 9 9 27 12 2 6 . 11 2 7 13 16 69 Peak Tracking Total 23 | . . 4 13 6 4 9 13 2 4 . 7 2 6 7 8 23 Tactical Retreats 38 | . . . 2 2 1 6 1 . 2 . 3 . . 6 3 12 Traps | -11 -10 -9 -8 -7 -6 -5 -4 -4 -4 -4 -3 -3 -3 -2 -2 -2 ------- Run | Jun Mat Mat Mat Fac Fac Fac Fac Upp Upp Zhi Pro Res Tes Res Qua Sec Traps Triggered 7 | . 1 . . . . 1 . . . . . . 1 2 . 2 Indirectly . | . . . . . . . . . . . . . . . . . Trap Hack Attempts . | . . . . . . . . . . . . . . . . . Triggered . | . . . . . . . . . . . . . . . . . Disarmed . | . . . . . . . . . . . . . . . . . Reprogrammed . | . . . . . . . . . . . . . . . . . Reused . | . . . . . . . . . . . . . . . . . Traps Extracted . | . . . . . . . . . . . . . . . . . Installed . | . . . . . . . . . . . . . . . . . Triggered 2 | . . . . . . . . . 2 . . . . . . . Machines | -11 -10 -9 -8 -7 -6 -5 -4 -4 -4 -4 -3 -3 -3 -2 -2 -2 ---------- Run | Jun Mat Mat Mat Fac Fac Fac Fac Upp Upp Zhi Pro Res Tes Res Qua Sec Machines Disabled 16 | . . . . . . . . . . . . . 2 . 7 7 Max in Single Turn 1 | . . . . . . . . . . . . . 1 . 1 1 Garrison Access 2 | . . . . . . . . . . . . . . . 1 1 Machines Repaired . | . . . . . . . . . . . . . . . . . Machines Sabotaged . | . . . . . . . . . . . . . . . . . Overloaded Fab Kills . | . . . . . . . . . . . . . . . . . Hacking | -11 -10 -9 -8 -7 -6 -5 -4 -4 -4 -4 -3 -3 -3 -2 -2 -2 --------- Run | Jun Mat Mat Mat Fac Fac Fac Fac Upp Upp Zhi Pro Res Tes Res Qua Sec Machines Accessed 23 | . . . . 1 . 1 1 1 . 4 . 1 1 2 2 9 Terminals 16 | . . . . 1 . 1 1 . . . . 1 . 2 2 8 Fabricators . | . . . . . . . . . . . . . . . . . Repair Stations . | . . . . . . . . . . . . . . . . . Recycling Units . | . . . . . . . . . . . . . . . . . Scanalyzers . | . . . . . . . . . . . . . . . . . Garrison Access 2 | . . . . . . . . . . . . . 1 . . 1 Total Hacks 54 | . . . . 2 . 2 4 1 . 17 . 1 2 3 4 18 Successful 34 | . . . . 2 . . 1 1 . 17 . 1 . 1 3 8 Failed 20 | . . . . . . 2 3 . . . . . 2 2 1 10 Catastrophic 8 | . . . . . . 2 2 . . . . . 1 1 . 2 Database Lockouts . | . . . . . . . . . . . . . . . . . Manual 23 | . . . . 2 . . 4 . . . . . . . 4 13 Terminals 31 | . . . . 2 . 2 4 . . . . 1 . 3 4 15 Fabricators . | . . . . . . . . . . . . . . . . . Repair Stations . | . . . . . . . . . . . . . . . . . Recycling Units . | . . . . . . . . . . . . . . . . . Scanalyzers . | . . . . . . . . . . . . . . . . . Garrison Access 5 | . . . . . . . . . . . . . 2 . . 3 Terminal Hacks 25 | . . . . 1 . . . 1 . 17 . 1 . 1 1 3 Record 5 | . . . . . . . . . . 5 . . . . . . Part Schematic 4 | . . . . . . . . . . 4 . . . . . . Robot Analysis 4 | . . . . . . . . . . 4 . . . . . . Prototype ID Bank 4 | . . . . . . . . . . 4 . . . . . . Open Door 4 | . . . . . . . . 1 . . . . . 1 . 2 Level Access Points 1 | . . . . 1 . . . . . . . . . . . . Branch Access Points 1 | . . . . . . . . . . . . 1 . . . . Zone Layout 2 | . . . . . . . . . . . . . . . 1 1 Fabricator Hacks . | . . . . . . . . . . . . . . . . . Repair Station Hacks . | . . . . . . . . . . . . . . . . . Recycling Unit Hacks . | . . . . . . . . . . . . . . . . . Scanalyzer . | . . . . . . . . . . . . . . . . . Garrison Access Hacks 1 | . . . . . . . . . . . . . . . . 1 Seal Access 1 | . . . . . . . . . . . . . . . . 1 Unauthorized Hacks 8 | . . . . 1 . . 1 . . . . . . . 2 4 Terminals 8 | . . . . 1 . . 1 . . . . . . . 2 4 Track 2 | . . . . . . . . . . . . . . . . 2 Assimilate 1 | . . . . . . . . . . . . . . . 1 . Botnet 5 | . . . . 1 . . 1 . . . . . . . 1 2 Fabricators . | . . . . . . . . . . . . . . . . . Repair Stations . | . . . . . . . . . . . . . . . . . Recycling Units . | . . . . . . . . . . . . . . . . . Scanalyzers . | . . . . . . . . . . . . . . . . . Garrison Access . | . . . . . . . . . . . . . . . . . Data Cores Recovered . | . . . . . . . . . . . . . . . . . Used . | . . . . . . . . . . . . . . . . . Hacking Detections 10 | . . . . . . 1 1 . . . . 1 1 1 . 5 Full Trace Events 3 | . . . . . . 1 1 . . . . . . 1 . . Feedback Events 2 | . . . . . . . 1 . . . . . . 1 . . Corruption 2 | . . . . . . . 1 . . . . . . 1 . . Feedback Blocked . | . . . . . . . . . . . . . . . . . Robot Schematics Acquired 1 | . . . . . . . . . . . . . . . . 1 Robots Built . | . . . . . . . . . . . . . . . . . Authchips . | . . . . . . . . . . . . . . . . . Time . | . . . . . . . . . . . . . . . . . Total Robot Build Rating . | . . . . . . . . . . . . . . . . . Part Schematics Acquired 7 | . . . . . . . . . . 4 . . . . . 3 Parts Built . | . . . . . . . . . . . . . . . . . Authchips . | . . . . . . . . . . . . . . . . . Time . | . . . . . . . . . . . . . . . . . Total Part Build Rating . | . . . . . . . . . . . . . . . . . Parts Repaired . | . . . . . . . . . . . . . . . . . Time . | . . . . . . . . . . . . . . . . . Parts Recycled . | . . . . . . . . . . . . . . . . . Recycled Matter . | . . . . . . . . . . . . . . . . . Retrieved Matter . | . . . . . . . . . . . . . . . . . Retrieved Components . | . . . . . . . . . . . . . . . . . Parts Scanalyzed . | . . . . . . . . . . . . . . . . . Part Schematics Acquired . | . . . . . . . . . . . . . . . . . Parts Damaged . | . . . . . . . . . . . . . . . . . Bothacking | -11 -10 -9 -8 -7 -6 -5 -4 -4 -4 -4 -3 -3 -3 -2 -2 -2 ------------ Run | Jun Mat Mat Mat Fac Fac Fac Fac Upp Upp Zhi Pro Res Tes Res Qua Sec Used RIF Installer . | . . . . . . . . . . . . . . . . . Robots Hacked . | . . . . . . . . . . . . . . . . . Non-combat . | . . . . . . . . . . . . . . . . . Combat . | . . . . . . . . . . . . . . . . . Robot Hacks Applied . | . . . . . . . . . . . . . . . . . Relay Couplers Released 1 | . . . . . . . . . . . . . . . 1 . Machine Destruction 1 | . . . . . . . . . . . . . . . 1 . Fabnet Peak Effective % . | . . . . . . . . . . . . . . . . . Robots Rewired . | . . . . . . . . . . . . . . . . . Allies Hacked . | . . . . . . . . . . . . . . . . . Hacks Repelled . | . . . . . . . . . . . . . . . . . Allies | -11 -10 -9 -8 -7 -6 -5 -4 -4 -4 -4 -3 -3 -3 -2 -2 -2 -------- Run | Jun Mat Mat Mat Fac Fac Fac Fac Upp Upp Zhi Pro Res Tes Res Qua Sec Total Allies . | . . . . . . . . . . . . . . . . . Largest Group . | . . . . . . . . . . . . . . . . . Highest-Rated Group . | . . . . . . . . . . . . . . . . . Highest-Rated Ally . | . . . . . . . . . . . . . . . . . Total Orders . | . . . . . . . . . . . . . . . . . Ally Attacks . | . . . . . . . . . . . . . . . . . Total Damage . | . . . . . . . . . . . . . . . . . Kills . | . . . . . . . . . . . . . . . . . Allies Corrupted . | . . . . . . . . . . . . . . . . . Allies Melted . | . . . . . . . . . . . . . . . . . Intel | -11 -10 -9 -8 -7 -6 -5 -4 -4 -4 -4 -3 -3 -3 -2 -2 -2 ------- Run | Jun Mat Mat Mat Fac Fac Fac Fac Upp Upp Zhi Pro Res Tes Res Qua Sec Robot Analysis Total 4 | . . . . . . . . . . 4 . . . . . . Derelict Logs Recovered 2 | . . . . . . . . 2 . . . . . . . . Drone Launches . | . . . . . . . . . . . . . . . . . Drone Recoveries . | . . . . . . . . . . . . . . . . . Exploration | -11 -10 -9 -8 -7 -6 -5 -4 -4 -4 -4 -3 -3 -3 -2 -2 -2 ------------- Run | Jun Mat Mat Mat Fac Fac Fac Fac Upp Upp Zhi Pro Res Tes Res Qua Sec Turns Passed 2950 | 13 90 55 171 151 101 309 132 113 178 63 85 40 92 296 516 545 Spaces Moved 6339 | 26 150 137 229 317 121 637 243 226 347 144 287 127 223 678 1361 1086 Core 1117 | 26 150 15 57 . . 8 91 226 347 51 . . . . . 146 Treads . | . . . . . . . . . . . . . . . . . Legs . | . . . . . . . . . . . . . . . . . Wheels . | . . . . . . . . . . . . . . . . . Hover 442 | . . . . . 4 282 152 . . . . . . . 4 . Flight 4780 | . . 122 172 317 117 347 . . . 93 287 127 223 678 1357 940 Fastest Speed 20 | 50 50 35 32 32 35 35 36 50 50 29 29 29 29 28 20 24 Average Speed 34 | 50 50 36 39 32 35 45 46 50 50 36 29 29 29 29 26 30 Slowest Speed 103 | 50 50 50 50 40 60 100 100 50 50 50 29 29 29 32 103 50 Overloaded Moves 15 | . . . . . . . . . . . . . . . . 15 Propulsion Burnouts . | . . . . . . . . . . . . . . . . . Robots Hopped 70 | . . 3 5 5 3 5 . . . . 1 . 6 4 10 28 Cave-ins Triggered . | . . . . . . . . . . . . . . . . . Teleports 1 | . . . . . . . . . . . . . . . . 1 Exploration Rate (%) 35 | 4 33 22 38 14 5 27 10 43 58 60 59 4 39 27 93 64 Regions Visited 16 Branch Regions 7 Pre-discovered Areas 3 | . . . . . . . . . . 3 . . . . . . Known Exits Taken 5 | . . . . 1 . . . 1 . . . 1 . 1 1 . Unknown Exits Taken 11 | 1 1 1 1 . 1 1 1 . 1 1 1 . 1 . . . Scrap Searched 5 | . . . . . . . . 3 1 . 1 . . . . . Spaces Dug 35 | . . 5 9 . 6 . 4 . . . . . . 2 7 2 Terrain Destroyed 68 | . . 5 35 . 10 3 4 . . . . . . 2 7 2 Melee 30 | . . . 9 . 6 . 4 . . . . . . 2 7 2 Projectile . | . . . . . . . . . . . . . . . . . AOE 38 | . . 5 26 . 4 3 . . . . . . . . . . Terrain Rammed . | . . . . . . . . . . . . . . . . . Walls Destroyed . | . . . . . . . . . . . . . . . . . Machines Disabled . | . . . . . . . . . . . . . . . . . Actions | -11 -10 -9 -8 -7 -6 -5 -4 -4 -4 -4 -3 -3 -3 -2 -2 -2 --------- Run | Jun Mat Mat Mat Fac Fac Fac Fac Upp Upp Zhi Pro Res Tes Res Qua Sec Total 6772 | 25 163 137 259 335 155 651 252 225 350 151 286 128 232 742 1466 1215 Wait 225 | . . . 2 4 17 3 . . . . . . . 42 60 97 Move 6192 | 25 149 131 218 307 115 626 243 225 346 143 284 126 211 669 1340 1034 Hop 62 | . . 2 5 4 2 5 . . . . 1 . 5 4 10 24 Pick Up 15 | . 2 . . . . 2 . . . 2 . . . 1 7 1 Fast Attach 73 | . 1 1 5 5 7 4 3 . 2 4 1 1 4 16 8 11 Attach 27 | . . 1 1 1 1 2 1 . . 2 . 1 1 1 4 11 Detach 29 | . . 1 1 2 1 4 1 . 1 . . . 3 1 8 6 Swap 2 | . . . . . 1 1 . . . . . . . . . . Drop 14 | . . . . . . 2 . . . . . . 2 . 7 3 Fire 11 | . . 1 5 . 4 1 . . . . . . . . . . Melee 110 | . . . 22 12 7 1 4 . . . . . 6 8 22 28 Ram 12 | . 11 . . . . . . . 1 . . . . . . . Kick . | . . . . . . . . . . . . . . . . . Crush . | . . . . . . . . . . . . . . . . . Escape Stasis . | . . . . . . . . . . . . . . . . . Rewire . | . . . . . . . . . . . . . . . . . Trap . | . . . . . . . . . . . . . . . . . Miscellaneous . | . . . . . . . . . . . . . . . . . Route ------- -11/Junkyard -10/Materials -9/Materials -8/Materials -7/Factory (discovered 4 exits: *Fac x4) -6/Factory -5/Factory -4/Factory -4/Upper Caves -4/Upper Caves -4/Zhirov -3/Proximity Caves -3/Research (discovered 3 exits: Arm / *Tes x2) -3/Testing -2/Research -2/Quarantine (discovered 2 exits: *Acc / *Sec) -2/Section 7 (discovered 1 exit: *Acc) History --------- Turn | Location | Event 5 | -11/Junkyard | Discovered new exit (range 14) 14 | -11/Junkyard | Entered Materials 98 | -10/Materials | Discovered new exit (range 11) 104 | -10/Materials | Entered another Materials area 104 | -9/Materials | Evolved 2 slots: Propulsion x1, Utility x1 159 | -9/Materials | Discovered new exit (range 3) 159 | -9/Materials | Entered another Materials area 159 | -8/Materials | Evolved 2 slots: Propulsion x1, Utility x1 321 | -8/Materials | Discovered new exit (range 10) 330 | -8/Materials | Entered Factory 330 | -7/Factory | Evolved 2 slots: Propulsion x1, Utility x1 353 | -7/Factory | Identified exit to Factory 481 | -7/Factory | Entered another Factory area 481 | -6/Factory | Evolved 2 slots: Propulsion x1, Utility x1 493 | -6/Factory | Lost 6 parts (3n3u) 503 | -6/Factory | Spotted B-75 Beast 561 | -6/Factory | Discovered new exit (range 11) 582 | -6/Factory | Entered another Factory area 582 | -5/Factory | Evolved 2 slots: Propulsion x1, Utility x1 726 | -5/Factory | Build established: Mutant 736 | -5/Factory | Discovered new exit (range 9) 843 | -5/Factory | Lost 3 parts (2n1u) 882 | -5/Factory | Search patrols dispatched 891 | -5/Factory | Entered another Factory area 891 | -4/Factory | Evolved 2 slots: Propulsion x1, Utility x1 1018 | -4/Factory | Discovered new exit (range 13) 1023 | -4/Factory | Entered Upper Caves 1028 | -4/Upper Caves | Identified exit to Upper Caves 1052 | -4/Upper Caves | Lost 4 parts (2n2u) 1103 | -4/Upper Caves | Learned Research emergency access door positions 1136 | -4/Upper Caves | Entered another Upper Caves area 1307 | -4/Upper Caves | Discovered new exit (range 14) 1314 | -4/Upper Caves | Entered Zhirov 1314 | -4/Zhirov | Discovered new exit (range 3) 1324 | -4/Zhirov | Met Zhirov 1353 | -4/Zhirov | Found Alien Artifact 1353 | -4/Zhirov | Identified Integrated Reactor 1353 | -4/Zhirov | Installed Integrated Reactor, increased core energy generation (+10) 1358 | -4/Zhirov | Found Alien Artifact 1366 | -4/Zhirov | Learned location of Quarantine (-2) 1366 | -4/Zhirov | Learned location of Testing (-3) 1366 | -4/Zhirov | Learned location of Command (-1) 1369 | -4/Zhirov | Zhirov requested help retrieving the SGEMP Prototype 1377 | -4/Zhirov | Entered Proximity Caves 1387 | -3/Proximity Caves | Attracted the attention of an 0b10 checkpoint 1460 | -3/Proximity Caves | Discovered new exit (range 6) 1462 | -3/Proximity Caves | Entered Research 1462 | -3/Research | Evolved 2 slots: Propulsion x1, Utility x1 1475 | -3/Research | Identified exit to Armory 1475 | -3/Research | Identified exit to Testing 1502 | -3/Research | Entered Testing 1514 | -3/Testing | Spotted PL-50JBK0RJ5V 1524 | -3/Testing | Found Prototype Energy Cannon 1524 | -3/Testing | Identified Disintegrator 1589 | -3/Testing | Discovered new exit (range 15) 1594 | -3/Testing | Entered Research 1594 | -2/Research | Evolved 2 slots: Power x1, Utility x1 1597 | -2/Research | Spotted B-90 Cyclops 1790 | -2/Research | Lost 3 parts (2n1w) 1841 | -2/Research | Spotted B-90 Cyclops 1858 | -2/Research | Discovered new exit (range 9) 1890 | -2/Research | Identified exit to Quarantine 1890 | -2/Research | Entered Quarantine 1896 | -2/Quarantine | Found Alien Artifact 1929 | -2/Quarantine | Build established: Hacker-Sprinter 2030 | -2/Quarantine | Found Alien Slashing Weapon 2030 | -2/Quarantine | Identified Sigix Broadsword 2044 | -2/Quarantine | Found Alien Artifact 2044 | -2/Quarantine | Identified Phase Redirector 2098 | -2/Quarantine | Cryocooling Duct disabled 2102 | -2/Quarantine | Cryocooling Duct disabled 2113 | -2/Quarantine | Ambient heat levels rising (+20) 2113 | -2/Quarantine | Non-combat units ordered to evacuate 2117 | -2/Quarantine | Ambient heat levels rising (+20) 2117 | -2/Quarantine | Combat units ordered to evacuate 2176 | -2/Quarantine | Discovered new exit (range 13) 2217 | -2/Quarantine | Quarantine Guard activated 2240 | -2/Quarantine | Found Alien Energy Cannon 2253 | -2/Quarantine | Spotted Quarantine Guard 2257 | -2/Quarantine | Spotted Quarantine Guard 2257 | -2/Quarantine | Spotted Quarantine Guard 2287 | -2/Quarantine | Spotted Quarantine Guard 2292 | -2/Quarantine | Spotted Quarantine Guard 2336 | -2/Quarantine | Spotted Quarantine Guard 2378 | -2/Quarantine | Spotted Quarantine Guard 2381 | -2/Quarantine | Spotted Fortress 2402 | -2/Quarantine | Discovered new exit (range 6) 2402 | -2/Quarantine | Spotted Quarantine Guard 2403 | -2/Quarantine | Identified exit to Section 7 2406 | -2/Quarantine | Entered Section 7 2433 | -2/Section 7 | Lost 3 parts (1n2u) 2477 | -2/Section 7 | Found Alien Artifact 2477 | -2/Section 7 | Identified Integrity Redistributor 2477 | -2/Section 7 | Used Integrity Redistributor, redistributed integrity from core (-61) 2554 | -2/Section 7 | Spotted B-90 Cyclops 2555 | -2/Section 7 | Spotted Alpha 7 2620 | -2/Section 7 | Spotted S7 Guard 2621 | -2/Section 7 | Spotted S7 Guard 2631 | -2/Section 7 | Found Alien Artifact 2631 | -2/Section 7 | Identified Integrated Dissipator 2631 | -2/Section 7 | Installed Integrated Dissipator, increased core heat dissipation (+20) 2652 | -2/Section 7 | Found Integrated Dissipator 2652 | -2/Section 7 | Installed Integrated Dissipator, increased core heat dissipation (+20) 2656 | -2/Section 7 | Search patrols dispatched 2757 | -2/Section 7 | Found Alien Artifact 2757 | -2/Section 7 | Identified Integrated Thermoelectric Network 2757 | -2/Section 7 | Installed Integrated Thermoelectric Network, gained heat-energy exchange potential 2763 | -2/Section 7 | System corruption reached 10% 2773 | -2/Section 7 | Found Alien Artifact 2773 | -2/Section 7 | Identified Core Physics Calibrator 2792 | -2/Section 7 | Discovered new exit (range 15) 2799 | -2/Section 7 | Spotted S7 Guard 2812 | -2/Section 7 | Found Alien Artifact 2812 | -2/Section 7 | Identified Core Membrane 2812 | -2/Section 7 | Installed Core Membrane, gained immunity to corruption 2815 | -2/Section 7 | Lost 7 parts (1p4n2u) 2822 | -2/Section 7 | Identified exit to Access 2828 | -2/Section 7 | Identified Subatomic Replicator 2828 | -2/Section 7 | Identified Transdimensional Reconstructor 2828 | -2/Section 7 | Warped through subspace 2844 | -2/Section 7 | Core integrity fell below 50% 2853 | -2/Section 7 | Spotted Alpha 7 2887 | -2/Section 7 | Spotted B-99 Colossus 2906 | -2/Section 7 | Search patrols dispatched 2920 | -2/Section 7 | Found Alien Artifact 2920 | -2/Section 7 | Identified LRC Matter Compressor 2920 | -2/Section 7 | Installed LRC Matter Compressor, increased matter storage capacity (+125) 2922 | -2/Section 7 | Lost 8 parts (5n2u1w) 2924 | -2/Section 7 | Found Alien Artifact 2924 | -2/Section 7 | Identified LRC Storage 2924 | -2/Section 7 | Installed LRC Storage, increased inventory capacity (+2) 2936 | -2/Section 7 | Core integrity fell below 20% 2944 | -2/Section 7 | Spotted Executioner 2951 | -2/Section 7 | Destroyed by H-88 Terminator with Heavy Machine Gun Last Messages --------------- patrols dispatched. 02917_ Connecting with Door Terminal... >>Open(Door) Sealed Heavy Doors opened. 02920_ Acquired Alien Artifact. 02920_ Identified LRC Matter Compressor. 02920_ LRC Matter Compressor installed, matter storage capacity increased (+125). 02924_ Acquired Alien Artifact. 02924_ Identified LRC Storage. 02924_ LRC Storage installed, inventory capacity increased (+2). 02935_ Penetrated by Slug. 02941_ Slug penetrates Reinforced Barrier. 02941_ Slug penetrates Machine. 02944_ Penetrated by Slug. 02947_ Slug penetrates Reinforced Barrier. 02948_ Penetrated by Slug. 02948_ Slug penetrates Reinforced Barrier. 02950_ Penetrated by Slug. 02951_ Slug penetrates Machine. Map ----- +----------------------------------------------------+ | ????????????????###??# #????????????????????????? | | ?????????????????????# #????????????????????????? | | ?????????????????????# #??#################?????? | | ?????????????????????# #??#"""""" """""#?????? | | ?????????????????????# #??#"""""" """""#?????? | | ?????????????????????# #??#"""""" "#?????? | | ??????????############ #### " """""#?????? | | ??????????# """""#?????? | | ??????????# """""#?????? | | ??????????# ###############" """""#?????? | | ??????##### #?????????????#"" "#?????? | | ???####!!!# #####?????????#" " "#?????? | | ???#" """"" """"#?????????#"""""""" """ "#?????? | | ???#" """#?????????######### # ####?????? | | ????" """#?????????????????# ###????????? | | ???#""""" """#?????????????????# #??????????? | | ???#""""" """#?????????????????# #??????????? | | ???#""""" """#?????????????????# #??????????? | | ???#""""" """#?###############?# #??????????? | | ???#" """"#?#"""""""""""""#?# #??????????? | | ???#""""" """#?#""@"""" #?# #??????????? | | ???#""""" """"#?#"" """"c #?# #??????????? | | ???######## #####?#"" """" ### #??????????? | | ??????????# #?????#"" """" #??????????? | | ??????????# #?????# #??????????? | | ??????????# #?????# h @ ######??????????? | | ??????????# #######h """" ""#???????????????? | | ??????????# h """" ""#???????????????? | | ??????????# """" ""#???????????????? | | ??????????##########" """" ""#???????????????? | | ???????????????????#"""T """"""""#???????????????? | | ???????????????????##### #########???????????????? | | ???????????????????????# #???????????????????????? | | ??????????????????????## #####???????????????????? | | ??????????????????????# "" #???????????????????? | | ??????????????????????#" #???????????????????? | | ???????????????????????#######???????????????????? | | ?????????????????????????????????????????????????? | | ?????????????????????????????????????????????????? | | ?????????????????????????????????????????????????? | | ?????????????????????????????????????????????????? | | ?????????????????????????????????????????????????? | | | | | | | | | | | | | | | | | +----------------------------------------------------+ Best States ------------- Heat Dissipation 108 Energy Generation 37 Energy Capacity 170 Matter Stores 300 Matter Capacity 425 Sight Range 20 Terrain Scan Range 20 Terrain Scan Density 160 Power Amplification 40 Core Shielding 30 Propulsion Shielding 33 Utility Shielding 66 Evasion (%) 76 Melee Accuracy 8 Offensive Hacking 14 Defensive Hacking 24 Item Schematics ----------------- Assault Drone Bay | -4/Zhirov | Free Exp. Heat Sink | -4/Zhirov | Free Exp. Optical Array | -4/Zhirov | Free Imp. Arc Thrower | -4/Zhirov | Free Exp. Cooling System | -2/Section 7 | Archive Exp. Biometal Heavy Treads | -2/Section 7 | Archive Prc. Matter Filter | -2/Section 7 | Archive Robot Schematics ------------------ H-88 Terminator | -2/Section 7 | Archive Fabricated ------------ Nothing Alien Tech Used ----------------- Integrated Reactor Sigix Broadsword Phase Redirector Integrity Redistributor Integrated Dissipator Integrated Thermoelectric Network Core Physics Calibrator Core Membrane Subatomic Replicator Transdimensional Reconstructor LRC Matter Compressor LRC Storage Achievements -------------- None Challenges ------------ None Game ------ Seed NovaQuantumProcessor Manual? 0 Play Time 00:50:28 Cumulative 386.9 hours Start 2023.10.25 @ 21:56:46 End 2023.10.25 @ 23:07:19 Sessions 1 Manual Loads 0 Difficulty Rogue Special Mode None Game No. 151 Rogue 135 Adventurer 8 Explorer 8 Win Type - Total 31 Types 12/1/11/1/1/2/3/0/0 Lore% 91 Gallery% 89 Achievement% 78 Wizard Run 0 Options --------- ASCII 1 Keyboard 1 Movement Vi Keybinds 0 Fullscreen 2 Font 18/SmallcapsGlow Map View 76x50 Tactical HUD 1 Map Filters NONE Filters NONE Steam 0 RUN: ccb52285-95d1-4bc1-ad06-a7a8959fe75f